[Event "Late-Titled-Tuesday-Blitz-May-07-2024"]
[Site "Chess.com"]
[Date "2024.05.07"]
[Round "3"]
[White "RuperezA"]
[Black "stefy02"]
[Result "1/2-1/2"]
[WhiteElo "2631"]
[BlackElo "2442"]
[TimeControl "180+1"]
[EndTime "14:29:56 PDT"]
[Termination "Game drawn by repetition"]

1. e4 {[%clk 0:03:00.9]} 1... e5 {[%clk 0:02:59.7]} 2. Nf3 {[%clk 0:03:00.5]}
2... Nc6 {[%clk 0:03:00.2]} 3. Bc4 {[%clk 0:02:58.3]} 3... Bc5 {[%clk 0:03:00]}
4. O-O {[%clk 0:02:57.3]} 4... Nf6 {[%clk 0:02:58.9]} 5. d3 {[%clk 0:02:57.6]}
5... a6 {[%clk 0:02:58.6]} 6. c3 {[%clk 0:02:57.5]} 6... d6 {[%clk 0:02:59]} 7.
Bb3 {[%clk 0:02:57.9]} 7... O-O {[%clk 0:02:58.2]} 8. h3 {[%clk 0:02:57.8]} 8...
Ba7 {[%clk 0:02:58.4]} 9. Nbd2 {[%clk 0:02:57.5]} 9... Be6 {[%clk 0:02:59.1]}
10. Re1 {[%clk 0:02:55.2]} 10... Re8 {[%clk 0:02:55.2]} 11. Nf1 {[%clk
0:02:54.4]} 11... Bxb3 {[%clk 0:02:55.1]} 12. Qxb3 {[%clk 0:02:55.3]} 12... b5
{[%clk 0:02:51.7]} 13. Be3 {[%clk 0:02:54.6]} 13... d5 {[%clk 0:02:49.6]} 14.
Bxa7 {[%clk 0:02:52.6]} 14... Rxa7 {[%clk 0:02:49.9]} 15. Rad1 {[%clk
0:02:53.1]} 15... d4 {[%clk 0:02:47.6]} 16. cxd4 {[%clk 0:02:49]} 16... Nxd4
{[%clk 0:02:46.8]} 17. Nxd4 {[%clk 0:02:48.7]} 17... Qxd4 {[%clk 0:02:47.7]} 18.
Ne3 {[%clk 0:02:49.1]} 18... c5 {[%clk 0:02:43.1]} 19. Nf5 {[%clk 0:02:44.9]}
19... Qd7 {[%clk 0:02:42.1]} 20. Qc3 {[%clk 0:02:44.8]} 20... Rc7 {[%clk
0:02:40.2]} 21. b4 {[%clk 0:02:38.8]} 21... Nd5 {[%clk 0:02:25.1]} 22. exd5
{[%clk 0:02:11.5]} 22... cxb4 {[%clk 0:02:24.6]} 23. Qxb4 {[%clk 0:01:53.6]}
23... Qxf5 {[%clk 0:02:24.5]} 24. Re3 {[%clk 0:01:28.7]} 24... Rc2 {[%clk
0:02:16.1]} 25. Rf3 {[%clk 0:01:24.1]} 25... Qd7 {[%clk 0:02:15.8]} 26. Qb3
{[%clk 0:01:14.8]} 26... Rc5 {[%clk 0:02:14.8]} 27. d6 {[%clk 0:01:09.2]} 27...
Rc6 {[%clk 0:02:14.9]} 28. a4 {[%clk 0:00:52.9]} 28... Rxd6 {[%clk 0:02:12.1]}
29. axb5 {[%clk 0:00:53.5]} 29... axb5 {[%clk 0:02:12.5]} 30. Re1 {[%clk
0:00:53.1]} 30... Rde6 {[%clk 0:02:03.7]} 31. Re4 {[%clk 0:00:51.2]} 31... h6
{[%clk 0:01:28.5]} 32. h4 {[%clk 0:00:29.7]} 32... Rb8 {[%clk 0:01:28.3]} 33.
Rb4 {[%clk 0:00:27.2]} 33... Rbb6 {[%clk 0:01:28.2]} 34. Kh2 {[%clk 0:00:24.6]}
34... Rf6 {[%clk 0:01:26.4]} 35. Rxf6 {[%clk 0:00:22.1]} 35... Rxf6 {[%clk
0:01:27.3]} 36. f3 {[%clk 0:00:17.9]} 36... Rf4 {[%clk 0:01:04.9]} 37. Rxf4
{[%clk 0:00:17]} 37... exf4 {[%clk 0:01:05.8]} 38. d4 {[%clk 0:00:15]} 38...
Qxd4 {[%clk 0:01:02.2]} 39. Qxb5 {[%clk 0:00:15]} 39... Qf6 {[%clk 0:00:59.8]}
40. Qe8+ {[%clk 0:00:15.4]} 40... Kh7 {[%clk 0:00:59.6]} 41. Qe4+ {[%clk
0:00:16]} 41... g6 {[%clk 0:00:58.2]} 42. h5 {[%clk 0:00:16.1]} 42... Qh4+
{[%clk 0:00:55.3]} 43. Kg1 {[%clk 0:00:16.6]} 43... Qxh5 {[%clk 0:00:52.4]} 44.
Qxf4 {[%clk 0:00:16.4]} 44... Qc5+ {[%clk 0:00:50.9]} 45. Kh2 {[%clk 0:00:15.7]}
45... Kg7 {[%clk 0:00:49.5]} 46. Qe4 {[%clk 0:00:16.3]} 46... Qc7+ {[%clk
0:00:46.2]} 47. Kg1 {[%clk 0:00:16.5]} 47... Qb6+ {[%clk 0:00:43.3]} 48. Kh2
{[%clk 0:00:15]} 48... Qf6 {[%clk 0:00:42.5]} 49. Qd5 {[%clk 0:00:12.8]} 49...
g5 {[%clk 0:00:39.7]} 50. g4 {[%clk 0:00:10.6]} 50... Qb2+ {[%clk 0:00:35.7]}
51. Kg3 {[%clk 0:00:11.1]} 51... Qc3 {[%clk 0:00:32.6]} 52. Qd6 {[%clk
0:00:09.6]} 52... Qe1+ {[%clk 0:00:30.5]} 53. Kg2 {[%clk 0:00:09.4]} 53... Qe2+
{[%clk 0:00:28]} 54. Kg3 {[%clk 0:00:09.3]} 54... Qe3 {[%clk 0:00:23.6]} 55. Qd5
{[%clk 0:00:08.9]} 55... Qf4+ {[%clk 0:00:18]} 56. Kg2 {[%clk 0:00:09.4]} 56...
Qf6 {[%clk 0:00:17.2]} 57. Qe4 {[%clk 0:00:09.5]} 57... Qb2+ {[%clk 0:00:12.7]}
58. Kg3 {[%clk 0:00:09.6]} 58... Qb8+ {[%clk 0:00:10.5]} 59. Kh3 {[%clk
0:00:09.7]} 59... Qd6 {[%clk 0:00:08.3]} 60. Qf5 {[%clk 0:00:09.5]} 60... Qf6
{[%clk 0:00:07.2]} 61. Qe4 {[%clk 0:00:09.8]} 61... Qd6 {[%clk 0:00:06.4]} 62.
Kg2 {[%clk 0:00:10.2]} 62... Qd2+ {[%clk 0:00:06.2]} 63. Kg3 {[%clk 0:00:10.7]}
63... Qd6+ {[%clk 0:00:04.7]} 64. Kh3 {[%clk 0:00:11]} 64... Qf6 {[%clk
0:00:04.8]} 65. Kg2 {[%clk 0:00:11.6]} 65... Qd6 {[%clk 0:00:04.7]} 66. Qf5
{[%clk 0:00:11.9]} 66... Qf6 {[%clk 0:00:03.4]} 67. Qd5 {[%clk 0:00:12]} 67...
Qb2+ {[%clk 0:00:03.2]} 68. Kg3 {[%clk 0:00:12.6]} 68... Qb8+ {[%clk 0:00:03.2]}
69. Kg2 {[%clk 0:00:12.9]} 69... Qf4 {[%clk 0:00:03.8]} 70. Qc6 {[%clk
0:00:12.7]} 70... Qf6 {[%clk 0:00:04]} 71. Qc2 {[%clk 0:00:12.5]} 71... Qf4
{[%clk 0:00:04]} 72. Qe2 {[%clk 0:00:13]} 72... Qf6 {[%clk 0:00:04.3]} 73. Qd3
{[%clk 0:00:13.6]} 73... Qf4 {[%clk 0:00:03.9]} 74. Qe2 {[%clk 0:00:13.9]} 74...
Qf6 {[%clk 0:00:03.5]} 75. Qe4 {[%clk 0:00:14.6]} 1/2-1/2

[Event "Late-Titled-Tuesday-Blitz-May-07-2024"]
[Site "Chess.com"]
[Date "2024.05.07"]
[Round "3"]
[White "IlanSchnaider"]
[Black "scandalgod"]
[Result "0-1"]
[WhiteElo "2705"]
[BlackElo "2515"]
[TimeControl "180+1"]
[EndTime "14:30:06 PDT"]
[Termination "scandalgod won by checkmate"]

1. e4 {[%clk 0:02:59.9]} 1... e5 {[%clk 0:02:59.4]} 2. Nf3 {[%clk 0:02:59.8]}
2... Nc6 {[%clk 0:02:59.2]} 3. d4 {[%clk 0:02:58.2]} 3... exd4 {[%clk
0:02:58.9]} 4. Nxd4 {[%clk 0:02:59.1]} 4... Bc5 {[%clk 0:02:58.9]} 5. Nb3 {[%clk
0:02:59]} 5... Bb6 {[%clk 0:02:58.9]} 6. Nc3 {[%clk 0:02:59.4]} 6... Nf6 {[%clk
0:02:58]} 7. Qe2 {[%clk 0:02:59.3]} 7... d6 {[%clk 0:02:56.1]} 8. Bg5 {[%clk
0:02:58.6]} 8... Be6 {[%clk 0:02:51.9]} 9. O-O-O {[%clk 0:02:57]} 9... h6 {[%clk
0:02:44.4]} 10. Bh4 {[%clk 0:02:55.3]} 10... Qe7 {[%clk 0:02:28.4]} 11. f4
{[%clk 0:02:40.5]} 11... O-O-O {[%clk 0:02:23.9]} 12. e5 {[%clk 0:02:04.9]}
12... dxe5 {[%clk 0:02:19.4]} 13. fxe5 {[%clk 0:02:05.8]} 13... Rxd1+ {[%clk
0:02:14.3]} 14. Nxd1 {[%clk 0:01:52.9]} 14... Qb4 {[%clk 0:02:12.4]} 15. exf6
{[%clk 0:01:37.9]} 15... Qxh4 {[%clk 0:02:08.3]} 16. fxg7 {[%clk 0:01:37.2]}
16... Qg5+ {[%clk 0:01:55.2]} 17. Kb1 {[%clk 0:01:37.1]} 17... Rd8 {[%clk
0:01:48.6]} 18. Nc3 {[%clk 0:01:16.6]} 18... Qxg7 {[%clk 0:01:39.9]} 19. Qe4
{[%clk 0:01:06.7]} 19... Re8 {[%clk 0:01:19.5]} 20. Bb5 {[%clk 0:01:01.2]} 20...
Bd7 {[%clk 0:01:19.5]} 21. Qf3 {[%clk 0:00:54.4]} 21... a6 {[%clk 0:01:15.7]}
22. Ba4 {[%clk 0:00:46.4]} 22... Re5 {[%clk 0:01:07]} 23. a3 {[%clk 0:00:43.7]}
23... Qg6 {[%clk 0:01:02.2]} 24. Qf4 {[%clk 0:00:35.1]} 24... Rf5 {[%clk
0:00:54.9]} 25. Qe4 {[%clk 0:00:28.6]} 25... Rf2 {[%clk 0:00:49.7]} 26. Qxg6
{[%clk 0:00:15.8]} 26... fxg6 {[%clk 0:00:48.2]} 27. g3 {[%clk 0:00:13.9]} 27...
Bf5 {[%clk 0:00:40.3]} 28. Nc1 {[%clk 0:00:11.4]} 28... Nd4 {[%clk 0:00:30.8]}
29. Nd3 {[%clk 0:00:11.8]} 29... Rg2 {[%clk 0:00:22.3]} 30. Re1 {[%clk
0:00:11.3]} 30... c6 {[%clk 0:00:19.6]} 31. Re8+ {[%clk 0:00:06.8]} 31... Bd8
{[%clk 0:00:16.4]} 32. Re3 {[%clk 0:00:02.8]} 32... b5 {[%clk 0:00:12.2]} 33.
Bb3 {[%clk 0:00:03]} 33... Nxb3 {[%clk 0:00:10.9]} 34. cxb3 {[%clk 0:00:01.5]}
34... Rd2 {[%clk 0:00:10.9]} 35. Kc1 {[%clk 0:00:01.4]} 35... Rxd3 {[%clk
0:00:11]} 36. Re8 {[%clk 0:00:01.9]} 36... Kd7 {[%clk 0:00:10.6]} 37. Rg8 {[%clk
0:00:02.2]} 37... Bg5+ {[%clk 0:00:10.6]} 38. Kc2 {[%clk 0:00:01.5]} 38... Rxg3+
{[%clk 0:00:08.5]} 39. Kd1 {[%clk 0:00:00.8]} 39... Rg1+ {[%clk 0:00:07.8]} 40.
Ke2 {[%clk 0:00:00.9]} 40... Rg2+ {[%clk 0:00:08]} 41. Kf1 {[%clk 0:00:01.6]}
41... Rxb2 {[%clk 0:00:08.1]} 42. Ne2 {[%clk 0:00:01.8]} 42... Bd3 {[%clk
0:00:07.6]} 43. Rg7+ {[%clk 0:00:02.5]} 43... Kd6 {[%clk 0:00:07.5]} 44. Ke1
{[%clk 0:00:02.5]} 44... Rxe2+ {[%clk 0:00:07]} 45. Kd1 {[%clk 0:00:03.2]} 45...
Rd2+ {[%clk 0:00:05.9]} 46. Ke1 {[%clk 0:00:03.3]} 46... Ra2 {[%clk 0:00:04.8]}
47. a4 {[%clk 0:00:04]} 47... Bh4+ {[%clk 0:00:04.1]} 48. Kd1 {[%clk 0:00:03.9]}
48... Bf6 {[%clk 0:00:03.7]} 49. Rg8 {[%clk 0:00:03.8]} 49... Bc3 {[%clk
0:00:03.8]} 50. Rd8+ {[%clk 0:00:03.2]} 50... Kc5 {[%clk 0:00:04.2]} 51. Rxd3
{[%clk 0:00:04.1]} 51... Kb4 {[%clk 0:00:04.2]} 52. Rg3 {[%clk 0:00:04.1]} 52...
Kxb3 {[%clk 0:00:04.3]} 53. axb5 {[%clk 0:00:04.5]} 53... axb5 {[%clk
0:00:04.3]} 54. h4 {[%clk 0:00:04.9]} 54... Rh2 {[%clk 0:00:03.7]} 55. Rxg6
{[%clk 0:00:04.7]} 55... Rxh4 {[%clk 0:00:03.7]} 56. Rxc6 {[%clk 0:00:05.5]}
56... Rd4+ {[%clk 0:00:03.4]} 57. Kc1 {[%clk 0:00:05.5]} 57... h5 {[%clk
0:00:03.7]} 58. Rh6 {[%clk 0:00:04.7]} 58... h4 {[%clk 0:00:03.8]} 59. Re6
{[%clk 0:00:04.4]} 59... Rg4 {[%clk 0:00:03.9]} 60. Kd1 {[%clk 0:00:04.3]} 60...
h3 {[%clk 0:00:03.2]} 61. Rh6 {[%clk 0:00:04.6]} 61... Rg3 {[%clk 0:00:03.5]}
62. Ke2 {[%clk 0:00:05.1]} 62... b4 {[%clk 0:00:03.9]} 63. Kf2 {[%clk
0:00:05.3]} 63... Rg2+ {[%clk 0:00:04.2]} 64. Kf3 {[%clk 0:00:05.1]} 64... Rd2
{[%clk 0:00:04.8]} 65. Ke3 {[%clk 0:00:04.7]} 65... Kc2 {[%clk 0:00:04.6]} 66.
Ke4 {[%clk 0:00:04.1]} 66... Rd3 {[%clk 0:00:04.3]} 67. Rh7 {[%clk 0:00:02.6]}
67... b3 {[%clk 0:00:04.5]} 68. Rf7 {[%clk 0:00:02.2]} 68... h2 {[%clk
0:00:04.2]} 69. Rf2+ {[%clk 0:00:02.6]} 69... Rd2 {[%clk 0:00:04.8]} 70. Rf1
{[%clk 0:00:03.1]} 70... b2 {[%clk 0:00:05.4]} 71. Ke3 {[%clk 0:00:01.9]} 71...
b1=Q {[%clk 0:00:05.6]} 72. Rf5 {[%clk 0:00:01.5]} 72... Qe1+ {[%clk 0:00:05.2]}
73. Kf4 {[%clk 0:00:02]} 73... Rf2+ {[%clk 0:00:05.7]} 74. Kg4 {[%clk
0:00:02.4]} 74... Qe4+ {[%clk 0:00:05.7]} 75. Kh3 {[%clk 0:00:01.5]} 75... Qxf5+
{[%clk 0:00:05.7]} 76. Kg3 {[%clk 0:00:02.2]} 76... Qf4+ {[%clk 0:00:06]} 77.
Kh3 {[%clk 0:00:02.3]} 77... Rf3+ {[%clk 0:00:06.5]} 78. Kg2 {[%clk 0:00:02.5]}
78... Qg3+ {[%clk 0:00:07.2]} 79. Kh1 {[%clk 0:00:02.7]} 79... Rf1# {[%clk
0:00:08.1]} 0-1

[Event "Late-Titled-Tuesday-Blitz-May-07-2024"]
[Site "Chess.com"]
[Date "2024.05.07"]
[Round "3"]
[White "prime-morty"]
[Black "mbojan"]
[Result "0-1"]
[WhiteElo "2709"]
[BlackElo "2899"]
[TimeControl "180+1"]
[EndTime "14:30:12 PDT"]
[Termination "mbojan won by checkmate"]

1. c4 {[%clk 0:03:00.9]} 1... g6 {[%clk 0:02:59.1]} 2. Nc3 {[%clk 0:03:00.9]}
2... Bg7 {[%clk 0:02:59.5]} 3. g3 {[%clk 0:03:01.6]} 3... d6 {[%clk 0:02:59.2]}
4. Bg2 {[%clk 0:03:02.2]} 4... Nc6 {[%clk 0:02:59.8]} 5. Rb1 {[%clk 0:02:59.7]}
5... Bd7 {[%clk 0:02:57.9]} 6. b4 {[%clk 0:02:59.7]} 6... Qc8 {[%clk 0:02:57.9]}
7. b5 {[%clk 0:02:45.1]} 7... Nd8 {[%clk 0:02:51.8]} 8. d4 {[%clk 0:02:42.6]}
8... h5 {[%clk 0:02:51.4]} 9. h3 {[%clk 0:02:38.2]} 9... Nf6 {[%clk 0:02:47.8]}
10. Nf3 {[%clk 0:02:38.5]} 10... O-O {[%clk 0:02:47.8]} 11. e4 {[%clk
0:02:34.5]} 11... e5 {[%clk 0:02:29.7]} 12. dxe5 {[%clk 0:02:11.8]} 12... dxe5
{[%clk 0:02:29.9]} 13. Nxe5 {[%clk 0:02:09.8]} 13... Nxe4 {[%clk 0:02:22.5]} 14.
Nd5 {[%clk 0:01:51.9]} 14... Re8 {[%clk 0:02:15.4]} 15. Nxd7 {[%clk 0:01:24.6]}
15... Nc3+ {[%clk 0:01:50.3]} 16. Be3 {[%clk 0:01:24.1]} 16... Nxd1 {[%clk
0:01:35.8]} 17. Rxd1 {[%clk 0:01:25]} 17... Kh8 {[%clk 0:01:17.1]} 18. N7f6
{[%clk 0:01:13.4]} 18... Re6 {[%clk 0:01:06.4]} 19. Ne4 {[%clk 0:01:13.3]} 19...
c6 {[%clk 0:00:51.8]} 20. Nf4 {[%clk 0:01:13.2]} 20... Re7 {[%clk 0:00:38.8]}
21. Nd6 {[%clk 0:01:05.1]} 21... Qc7 {[%clk 0:00:35.9]} 22. O-O {[%clk
0:01:04.3]} 22... Ne6 {[%clk 0:00:36.4]} 23. Nxf7+ {[%clk 0:01:01.6]} 23... Rxf7
{[%clk 0:00:35.6]} 24. Nxe6 {[%clk 0:01:02]} 24... Qe7 {[%clk 0:00:35.4]} 25.
Nxg7 {[%clk 0:00:58]} 25... Kxg7 {[%clk 0:00:36.3]} 26. bxc6 {[%clk 0:00:57]}
26... bxc6 {[%clk 0:00:37.2]} 27. Bxc6 {[%clk 0:00:56.6]} 27... Rb8 {[%clk
0:00:36.5]} 28. Rd7 {[%clk 0:00:38.8]} 28... Qa3 {[%clk 0:00:33]} 29. Bd4+
{[%clk 0:00:37.4]} 29... Kf8 {[%clk 0:00:33.7]} 30. Rxf7+ {[%clk 0:00:30.1]}
30... Kxf7 {[%clk 0:00:33.8]} 31. Bd5+ {[%clk 0:00:30.4]} 31... Kf8 {[%clk
0:00:33.3]} 32. Re1 {[%clk 0:00:29.9]} 32... Re8 {[%clk 0:00:15.4]} 33. Bg7+
{[%clk 0:00:29.1]} 33... Kxg7 {[%clk 0:00:15.9]} 34. Rxe8 {[%clk 0:00:29.4]}
34... Qxa2 {[%clk 0:00:16.6]} 35. Rg8+ {[%clk 0:00:25.5]} 35... Kf6 {[%clk
0:00:16.9]} 36. Be4 {[%clk 0:00:22.5]} 36... Qxc4 {[%clk 0:00:16.7]} 37. Rxg6+
{[%clk 0:00:22.4]} 37... Kf7 {[%clk 0:00:15.7]} 38. Bf5 {[%clk 0:00:18.2]} 38...
a5 {[%clk 0:00:10.4]} 39. Rb6 {[%clk 0:00:13.2]} 39... a4 {[%clk 0:00:08.5]} 40.
Bg6+ {[%clk 0:00:10.6]} 40... Kg7 {[%clk 0:00:06.5]} 41. Bxh5 {[%clk 0:00:10.9]}
41... a3 {[%clk 0:00:04.5]} 42. Rb7+ {[%clk 0:00:11.4]} 42... Kf6 {[%clk
0:00:04.3]} 43. Ra7 {[%clk 0:00:09.8]} 43... Qc1+ {[%clk 0:00:03.7]} 44. Kg2
{[%clk 0:00:09.6]} 44... Qb2 {[%clk 0:00:03.4]} 45. Bf7 {[%clk 0:00:09.4]} 45...
Qb6 {[%clk 0:00:02.9]} 46. Rxa3 {[%clk 0:00:08.8]} 46... Kxf7 {[%clk 0:00:03.5]}
47. Rf3+ {[%clk 0:00:09.1]} 47... Kg6 {[%clk 0:00:04.1]} 48. g4 {[%clk
0:00:09.2]} 48... Qc6 {[%clk 0:00:04.3]} 49. Kg3 {[%clk 0:00:09.7]} 49... Qd6+
{[%clk 0:00:04.6]} 50. Kg2 {[%clk 0:00:09.9]} 50... Qd5 {[%clk 0:00:04.8]} 51.
Kg3 {[%clk 0:00:09.5]} 51... Qe5+ {[%clk 0:00:05.1]} 52. Kg2 {[%clk 0:00:09.9]}
52... Qe4 {[%clk 0:00:05.5]} 53. Kg3 {[%clk 0:00:10.3]} 53... Qe2 {[%clk
0:00:05.9]} 54. Rf5 {[%clk 0:00:10.4]} 54... Qf1 {[%clk 0:00:05.8]} 55. h4
{[%clk 0:00:09.3]} 55... Qg1+ {[%clk 0:00:05.8]} 56. Kh3 {[%clk 0:00:09.9]}
56... Kg7 {[%clk 0:00:05.3]} 57. h5 {[%clk 0:00:10.1]} 57... Kh6 {[%clk
0:00:05.5]} 58. Rf6+ {[%clk 0:00:10]} 58... Kh7 {[%clk 0:00:06.1]} 59. Rf5
{[%clk 0:00:10.3]} 59... Kg7 {[%clk 0:00:06.6]} 60. f3 {[%clk 0:00:10.3]} 60...
Qf2 {[%clk 0:00:06.3]} 61. Rg5+ {[%clk 0:00:09.7]} 61... Kh7 {[%clk 0:00:06.6]}
62. Rf5 {[%clk 0:00:10.6]} 62... Kh6 {[%clk 0:00:07.2]} 63. Rf6+ {[%clk
0:00:10.7]} 63... Kg7 {[%clk 0:00:07.8]} 64. Rf5 {[%clk 0:00:11.3]} 64... Kg8
{[%clk 0:00:08.5]} 65. Rg5+ {[%clk 0:00:11.8]} 65... Kf7 {[%clk 0:00:09.1]} 66.
Rf5+ {[%clk 0:00:12.5]} 66... Ke6 {[%clk 0:00:09.5]} 67. h6 {[%clk 0:00:12.7]}
67... Qe1 {[%clk 0:00:08.4]} 68. Kg2 {[%clk 0:00:11.6]} 68... Qe2+ {[%clk
0:00:08.2]} 69. Kg3 {[%clk 0:00:11.6]} 69... Qe1+ {[%clk 0:00:08.5]} 70. Kg2
{[%clk 0:00:12.1]} 70... Qd2+ {[%clk 0:00:08.9]} 71. Kg3 {[%clk 0:00:11.5]}
71... Qxh6 {[%clk 0:00:09.6]} 72. Kg2 {[%clk 0:00:11.4]} 72... Qd2+ {[%clk
0:00:09.8]} 73. Kg3 {[%clk 0:00:12]} 73... Qe1+ {[%clk 0:00:10.5]} 74. Kg2
{[%clk 0:00:12.6]} 74... Ke7 {[%clk 0:00:10.3]} 75. Kh3 {[%clk 0:00:12.9]} 75...
Qf2 {[%clk 0:00:10.4]} 76. Rg5 {[%clk 0:00:11]} 76... Qxf3+ {[%clk 0:00:10.2]}
77. Kh4 {[%clk 0:00:11.6]} 77... Qf2+ {[%clk 0:00:09.7]} 78. Kh5 {[%clk
0:00:11.5]} 78... Qh2+ {[%clk 0:00:07.2]} 79. Kg6 {[%clk 0:00:11.6]} 79... Qd6+
{[%clk 0:00:07.8]} 80. Kh5 {[%clk 0:00:11.6]} 80... Qf4 {[%clk 0:00:06.7]} 81.
Rg7+ {[%clk 0:00:11.5]} 81... Kf6 {[%clk 0:00:06.3]} 82. Rg6+ {[%clk 0:00:11.9]}
82... Kf7 {[%clk 0:00:06.4]} 83. Rc6 {[%clk 0:00:10.5]} 83... Qh2+ {[%clk
0:00:06.3]} 84. Kg5 {[%clk 0:00:10.9]} 84... Qd2+ {[%clk 0:00:07]} 85. Kh5
{[%clk 0:00:10.8]} 85... Qd5+ {[%clk 0:00:07.7]} 86. g5 {[%clk 0:00:10.6]} 86...
Qxc6 {[%clk 0:00:08.6]} 87. g6+ {[%clk 0:00:10]} 87... Qxg6+ {[%clk 0:00:09.5]}
88. Kh4 {[%clk 0:00:10.4]} 88... Kf6 {[%clk 0:00:10.4]} 89. Kh3 {[%clk
0:00:11.1]} 89... Kf5 {[%clk 0:00:11.3]} 90. Kh2 {[%clk 0:00:11.8]} 90... Kf4
{[%clk 0:00:12.2]} 91. Kh3 {[%clk 0:00:12.7]} 91... Kf3 {[%clk 0:00:13.1]} 92.
Kh2 {[%clk 0:00:13.4]} 92... Qg2# {[%clk 0:00:13.4]} 0-1

[Event "Late-Titled-Tuesday-Blitz-May-07-2024"]
[Site "Chess.com"]
[Date "2024.05.07"]
[Round "3"]
[White "Slovak_fighter2000"]
[Black "CarlosjPineror"]
[Result "0-1"]
[WhiteElo "2451"]
[BlackElo "2658"]
[TimeControl "180+1"]
[EndTime "14:30:16 PDT"]
[Termination "CarlosjPineror won on time"]

1. d4 {[%clk 0:02:59.3]} 1... Nf6 {[%clk 0:02:59.6]} 2. Nf3 {[%clk 0:02:57.4]}
2... d6 {[%clk 0:02:59.5]} 3. c4 {[%clk 0:02:54.6]} 3... g6 {[%clk 0:02:59.3]}
4. Nc3 {[%clk 0:02:54.3]} 4... Bf5 {[%clk 0:02:59.7]} 5. Bg5 {[%clk 0:02:48.6]}
5... Bg7 {[%clk 0:02:59.1]} 6. e3 {[%clk 0:02:46.5]} 6... Ne4 {[%clk 0:02:57.2]}
7. Nxe4 {[%clk 0:02:43.8]} 7... Bxe4 {[%clk 0:02:57.4]} 8. Bd3 {[%clk
0:02:42.4]} 8... Bxd3 {[%clk 0:02:45.4]} 9. Qxd3 {[%clk 0:02:43.3]} 9... O-O
{[%clk 0:02:45.2]} 10. O-O {[%clk 0:02:34.6]} 10... Nc6 {[%clk 0:02:44.8]} 11.
Rab1 {[%clk 0:02:29.2]} 11... Qd7 {[%clk 0:02:44.6]} 12. h3 {[%clk 0:02:18.7]}
12... f5 {[%clk 0:02:41.1]} 13. d5 {[%clk 0:02:13]} 13... Ne5 {[%clk 0:02:40.5]}
14. Nxe5 {[%clk 0:02:13.1]} 14... dxe5 {[%clk 0:02:38.1]} 15. e4 {[%clk
0:02:11]} 15... f4 {[%clk 0:02:38.1]} 16. f3 {[%clk 0:02:02.8]} 16... e6 {[%clk
0:02:23.3]} 17. Bh4 {[%clk 0:01:56.7]} 17... h6 {[%clk 0:02:16.5]} 18. Rfd1
{[%clk 0:01:54.8]} 18... g5 {[%clk 0:02:15.5]} 19. Bf2 {[%clk 0:01:51.5]} 19...
Rfd8 {[%clk 0:02:15.6]} 20. b4 {[%clk 0:01:46.2]} 20... c6 {[%clk 0:02:14.7]}
21. Qb3 {[%clk 0:01:38.1]} 21... exd5 {[%clk 0:02:11.8]} 22. cxd5 {[%clk
0:01:35.7]} 22... cxd5 {[%clk 0:02:11.8]} 23. Rxd5 {[%clk 0:01:35.3]} 23... Qf7
{[%clk 0:02:10.8]} 24. Rbd1 {[%clk 0:01:30.6]} 24... Rxd5 {[%clk 0:02:09.9]} 25.
Rxd5 {[%clk 0:01:31.4]} 25... b6 {[%clk 0:02:06.8]} 26. Rd7 {[%clk 0:01:28.5]}
26... Qxb3 {[%clk 0:02:00.8]} 27. axb3 {[%clk 0:01:29.4]} 27... Bf8 {[%clk
0:01:42.5]} 28. b5 {[%clk 0:01:20.8]} 28... a6 {[%clk 0:01:42.4]} 29. bxa6
{[%clk 0:01:14.2]} 29... Rxa6 {[%clk 0:01:43.3]} 30. Rb7 {[%clk 0:01:14.1]}
30... Ra1+ {[%clk 0:00:56.8]} 31. Kh2 {[%clk 0:01:07.9]} 31... Rf1 {[%clk
0:00:57.1]} 32. Bxb6 {[%clk 0:01:02.8]} 32... Bb4 {[%clk 0:00:56.8]} 33. Bg1
{[%clk 0:00:41.2]} 33... Be1 {[%clk 0:00:55.6]} 34. g4 {[%clk 0:00:21.3]} 34...
Bg3+ {[%clk 0:00:55.5]} 35. Kg2 {[%clk 0:00:21.5]} 35... Rb1 {[%clk 0:00:56.4]}
36. Rc7 {[%clk 0:00:13.1]} 36... Rb2+ {[%clk 0:00:53.8]} 37. Kh1 {[%clk
0:00:10.5]} 37... Rxb3 {[%clk 0:00:54.4]} 38. Kg2 {[%clk 0:00:10.8]} 38... Rb2+
{[%clk 0:00:54.4]} 39. Kh1 {[%clk 0:00:11.1]} 39... Rb1 {[%clk 0:00:41]} 40. Kg2
{[%clk 0:00:11.2]} 40... Ra1 {[%clk 0:00:39.2]} 41. Rc2 {[%clk 0:00:10.8]} 41...
Kf7 {[%clk 0:00:33.4]} 42. Rb2 {[%clk 0:00:10.4]} 42... Ra5 {[%clk 0:00:27.7]}
43. Bb6 {[%clk 0:00:09.9]} 43... Ra3 {[%clk 0:00:21.3]} 44. Bc7 {[%clk
0:00:09.3]} 44... Ke6 {[%clk 0:00:16.7]} 45. Bb6 {[%clk 0:00:04.6]} 45... Kd7
{[%clk 0:00:12.2]} 46. Bc5 {[%clk 0:00:04.6]} 46... Rd3 {[%clk 0:00:08.3]} 47.
Bf8 {[%clk 0:00:03.8]} 47... h5 {[%clk 0:00:03.7]} 48. gxh5 {[%clk 0:00:03.7]}
48... Ke8 {[%clk 0:00:04.6]} 49. Bg7 {[%clk 0:00:03.5]} 49... Kf7 {[%clk
0:00:04.9]} 50. Bxe5 {[%clk 0:00:03.5]} 50... Ra3 {[%clk 0:00:03.2]} 51. h6
{[%clk 0:00:02.5]} 51... Kg6 {[%clk 0:00:03.3]} 52. Rb6+ {[%clk 0:00:02.4]}
52... Kh7 {[%clk 0:00:02.7]} 53. Rb2 {[%clk 0:00:02.1]} 53... Kxh6 {[%clk
0:00:02.4]} 54. Bf6 {[%clk 0:00:02.6]} 54... Ra5 {[%clk 0:00:01.1]} 55. e5
{[%clk 0:00:02.9]} 55... Kh5 {[%clk 0:00:01.7]} 56. Re2 {[%clk 0:00:02.9]} 56...
Kg6 {[%clk 0:00:02.1]} 57. Bd8 {[%clk 0:00:02.8]} 57... Ra8 {[%clk 0:00:01.5]}
58. Bc7 {[%clk 0:00:03]} 58... Re8 {[%clk 0:00:02.4]} 59. Bd6 {[%clk 0:00:02.5]}
59... Kf5 {[%clk 0:00:03.3]} 60. Rc2 {[%clk 0:00:01.8]} 60... Ke6 {[%clk
0:00:03.9]} 61. Rc7 {[%clk 0:00:01.7]} 61... Ra8 {[%clk 0:00:04.3]} 62. Rc2
{[%clk 0:00:01.7]} 62... Ra7 {[%clk 0:00:03]} 63. Re2 {[%clk 0:00:02]} 63... Rb7
{[%clk 0:00:03.1]} 64. Rd2 {[%clk 0:00:02.1]} 64... Rb1 {[%clk 0:00:03.3]} 65.
Rc2 {[%clk 0:00:02.4]} 65... Re1 {[%clk 0:00:03.8]} 66. Rb2 {[%clk 0:00:02]}
66... Rd1 {[%clk 0:00:03.6]} 67. Rc2 {[%clk 0:00:02.1]} 67... Rd5 {[%clk
0:00:04]} 68. Re2 {[%clk 0:00:02.4]} 68... Rb5 {[%clk 0:00:04.4]} 69. Bf8 {[%clk
0:00:02.3]} 69... Bh4 {[%clk 0:00:04.7]} 70. Bg7 {[%clk 0:00:02.2]} 70... Rb3
{[%clk 0:00:04.4]} 71. Bf6 {[%clk 0:00:02.7]} 71... Rb6 {[%clk 0:00:04.1]} 72.
Rd2 {[%clk 0:00:02.9]} 72... Rc6 {[%clk 0:00:04.4]} 73. Kf1 {[%clk 0:00:03.1]}
73... Rc3 {[%clk 0:00:03.8]} 74. Kg2 {[%clk 0:00:02.4]} 74... Rc6 {[%clk
0:00:03.8]} 75. Rc2 {[%clk 0:00:02.2]} 75... Rxc2+ {[%clk 0:00:03.6]} 0-1